Cogmind - Beta 9.2 *** ADVENTURER MODE // 2019.12.09 @ 06:26:52 Player: McCloud Result: Destroyed by Y-45 Defender with Beam Rifle Performance ------------- Evolutions (1) 500 Regions Visited (2) 400 Robots Destroyed (16) 80 Value Destroyed (438) 438 Prototype IDs (0) 0 Alien Tech Used (0) 0 Bonus (0) 0 TOTAL SCORE: 1418 Bonus ------- None Cogmind --------- Core Integrity 0/400 Matter 300/300 Energy 264/265 System Corruption 0% Temperature Cool (9) Movement Core (150) Ox2 Location -9/Materials Parts ------- > --- POWER (1) -------- Improved Ion Engine > --- PROPULSION (2) --- (None) > --- UTILITY (4) ------ Improved Heat Sink Targeting Computer > --- WEAPON (2) ------- (None) > --- INVENTORY (4) ---- Beam Rifle Peak State ------------ > --- POWER ------------ Ion Engine > --- PROPULSION ------- Airjet Airjet > --- UTILITY ---------- Improved Heat Sink Signal Interpreter Targeting Computer Medium Armor Plating > --- WEAPON ----------- EM Pulse Gun EM Pulse Gun > --- INVENTORY -------- Compact Wheel Compact Wheel High-capacity Matter Pod Datajack [Rating: 16] Favorites ----------- Power Ion Engine Engine Ion Engine Propulsion Compact Wheel Leg Aluminum Leg Wheel Compact Wheel Hover Unit Airjet Utility Signal Interpreter Device Sensor Array Storage Small Storage Unit Processor Signal Interpreter Protection Medium Armor Plating Weapon EM Pulse Gun Energy Gun EM Pulse Gun Ballistic Gun Light Assault Rifle Special Melee Weapon Datajack Build | -11 -10 -9 ------- Run | Scr Mat Mat Slots Evolved 2 | . . 2 Power . | . . . Propulsion . | . . . Utility 2 | . . 2 Weapon . | . . . Parts Attached 38 | 9 9 20 Power 2 | 1 . 1 Engine 2 | 1 . 1 Core . | . . . Reactor . | . . . Propulsion 8 | 4 1 3 Treads . | . . . Leg 2 | 2 . . Wheel 3 | 2 1 . Hover 3 | . . 3 Flight . | . . . Utility 18 | 1 6 11 Device 8 | . 3 5 Storage 5 | 1 2 2 Processor 2 | . 1 1 Hackware . | . . . Protection 3 | . . 3 Artifact . | . . . Weapon 10 | 3 2 5 Energy Gun 5 | 3 1 1 Energy Cannon . | . . . Ballistic Gun 3 | . . 3 Ballistic Cannon . | . . . Launcher . | . . . Special Weapon . | . . . Impact Weapon . | . . . Slashing Weapon . | . . . Piercing Weapon . | . . . Special Melee Weapon 2 | . 1 1 Unidentified Prototypes . | . . . Parts Lost 14 | . . 14 Power 1 | . . 1 Propulsion 3 | . . 3 Utility 4 | . . 4 Weapon 6 | . . 6 Highest Loss Streak 13 | . . 13 Average Slot Usage (%) 87 | . 100 67 Engine 12 | . 14 8 Wheel 18 | . 28 2 Hover 3 | . . 9 Device 5 | . 4 8 Storage 10 | . 16 . Processor 11 | . 7 17 Protection 2 | . . 6 Energy Gun 18 | . 24 10 Special Melee Weapon 2 | . 3 . Naked Turns . | . . . Heaviest Build 26 | 13 25 26 Greatest Support 32 | 26 32 32 Greatest Overweight (x) 3 | . . 3 Average Overweight (x) . | . . . Largest Inventory Capacity 10 | 6 10 10 Average Capacity 5 | 5 6 4 Most Carried 6 | 4 6 5 Average Carried 3 | 2 4 2 Final Capacity 6 | 6 4 4 Final Carried 4 | 4 4 1 Class Distribution -------------------- 100% | Mutant Dominant Class ---------------- Mutant | -10/Materials Mutant | -9/Materials Resources | -11 -10 -9 ----------- Run | Scr Mat Mat Matter Collected 745 | 217 295 233 Remotely . | . . . Salvage Created 560 | . 158 402 Parts 38 | . 9 29 Haulers Intercepted . | . . . Recyclers Shooed . | . . . Parts Field Recycled . | . . . Retrieved Matter . | . . . Parts Self-Destructed . | . . . Prevented . | . . . Kills | -11 -10 -9 ------- Run | Scr Mat Mat Combat Hostiles Destroyed 12 | . 2 10 Guns 9 | . . 9 AOE 3 | . 2 1 Classes Destroyed 5 | . 3 2 Worker 1 | . 1 . Watcher 3 | . 2 1 Swarmer 4 | . . 4 Grunt 4 | . 2 2 Sentry 4 | . . 4 Best Kill Streak 9 | . 3 9 Combat Bots Only 7 | . 2 7 Max Kills in Single Turn 2 | . 2 2 Gunslinging . | . . . Exploded 2 | . 2 1 Melee . | . . . Uniques/NPCs Destroyed . | . . . Combat | -11 -10 -9 -------- Run | Scr Mat Mat Damage Taken 1254 | . 36 1218 Core 406 | . . 406 Absorbed by Shields . | . . . Core Remaining (%) 100 | 100 100 . Volleys Fired 37 | . 13 24 Largest 2 | . 2 2 Hottest 80 | . 80 80 Shots Fired 59 | . 23 36 Gun 59 | . 23 36 Cannon . | . . . Launcher . | . . . Special . | . . . Kinetic 13 | . . 13 Thermal . | . . . Explosive . | . . . Electromagnetic 46 | . 23 23 Robot Hit Streak 11 | . 4 11 Robot Miss Streak 2 | . 2 1 Penetration Max . | . . . Secondary Targets 1 | . . 1 Max Gunslinging Chain 1 | . . 1 Shots Hit Robots 45 | . 14 31 Core Hits 22 | . 6 16 Critical Hits . | . . . Critical Kills . | . . . Critical Parts Destroyed . | . . . Melee Attacks 1 | . 1 . Impact . | . . . Slashing . | . . . Piercing . | . . . Sneak Attacks 1 | . 1 . Combat Hostiles . | . . . Follow-up Attacks . | . . . Damage Inflicted 812 | . 403 409 Guns 570 | . 190 380 Cannons . | . . . Explosions 242 | . 213 29 Melee . | . . . Ramming . | . . . Kinetic 142 | . . 142 Thermal 242 | . 213 29 Explosive . | . . . Electromagnetic 428 | . 190 238 Impact . | . . . Slashing . | . . . Piercing . | . . . Highest Corruption 1 | . 1 . Average Corruption 1 | . 1 . Corruption Purged . | . . . Effects 2 | . 2 . Message Errors 2 | . 2 . Overload Shots . | . . . Overflow Damage 4 | . 4 . Projectiles . | . . . Explosions 4 | . 4 . Melee . | . . . Knockbacks . | . . . Impact . | . . . Kinetic . | . . . Secondary . | . . . Self-Inflicted Damage . | . . . Shots . | . . . Rammed . | . . . Targets Rammed . | . . . Kicked . | . . . Crushed . | . . . Highest Temperature 156 | . 54 156 Average Temperature 52 | . 25 66 Received Heat Transfer 552 | . . 552 Siege Activations . | . . . Robots Corrupted . | . . . Combat Hostiles . | . . . Parts Fried . | . . . Impact Corruptions . | . . . Robots Melted . | . . . Combat Hostiles . | . . . Parts Melted 1 | . 1 . Heat Transferred 300 | . 250 50 Parts Sabotaged . | . . . Parts Stolen . | . . . Parts Stripped . | . . . Power Chain Reactions 4 | . 3 1 Missiles Intercepted . | . . . Alert | -11 -10 -9 ------- Run | Scr Mat Mat Peak Influence 197 | . 147 197 Average Influence 70 | . 56 109 Maximum Alert Level . | . . . Low Security (%) 100 | 100 100 100 Level 1 . | . . . Level 2 . | . . . Level 3 . | . . . Level 4 . | . . . Level 5 . | . . . High Security . | . . . Max Security . | . . . Squads Dispatched 1 | . . 1 Investigation 1 | . . 1 Extermination . | . . . Reinforcement . | . . . Assault . | . . . Garrison . | . . . Intercept . | . . . Construction Impeded . | . . . Haulers Reinforced . | . . . Stealth | -11 -10 -9 --------- Run | Scr Mat Mat Distress Signals 1 | . . 1 Communications Jammed . | . . . Distress Signals . | . . . Times Spotted 30 | . 8 22 Peak Tracking Total 11 | . 2 11 Tactical Retreats 1 | . . 1 Traps | -11 -10 -9 ------- Run | Scr Mat Mat Traps Triggered 3 | . 2 1 Indirectly . | . . . Trap Hack Attempts . | . . . Triggered . | . . . Disarmed . | . . . Reprogrammed . | . . . Reused . | . . . Traps Extracted . | . . . Installed . | . . . Triggered . | . . . Machines | -11 -10 -9 ---------- Run | Scr Mat Mat Machines Disabled 2 | . 2 . Max in Single Turn 1 | . 1 . Machines Sabotaged . | . . . Garrisons Compromised . | . . . Overloaded Fab Kills . | . . . Fab Network Shutdowns . | . . . Hacking | -11 -10 -9 --------- Run | Scr Mat Mat Machines Accessed 2 | . 1 1 Terminals 1 | . . 1 Fabricators . | . . . Repair Stations 1 | . 1 . Recycling Units . | . . . Scanalyzers . | . . . Garrison Access . | . . . Total Hacks 7 | . 4 3 Successful 4 | . 3 1 Failed 3 | . 1 2 Catastrophic . | . . . Database Lockouts . | . . . Manual . | . . . Terminals 3 | . . 3 Fabricators . | . . . Repair Stations 4 | . 4 . Recycling Units . | . . . Scanalyzers . | . . . Garrison Access . | . . . Terminal Hacks 1 | . . 1 Alert Level 1 | . . 1 Fabricator Hacks . | . . . Repair Station Hacks 3 | . 3 . Scan Component 2 | . 2 . Repair 1 | . 1 . Recycling Unit Hacks . | . . . Scanalyzer . | . . . Garrison Access Hacks . | . . . Unauthorized Hacks . | . . . Terminals . | . . . Fabricators . | . . . Repair Stations . | . . . Recycling Units . | . . . Scanalyzers . | . . . Garrison Access . | . . . Data Cores Recovered . | . . . Used . | . . . Hacking Detections 2 | . 1 1 Full Trace Events 1 | . 1 . Feedback Events . | . . . Feedback Blocked . | . . . Robot Schematics Acquired . | . . . Robots Built . | . . . Matter . | . . . Time . | . . . Total Robot Build Rating . | . . . Part Schematics Acquired . | . . . Parts Built . | . . . Matter . | . . . Time . | . . . Total Part Build Rating . | . . . Parts Repaired 1 | . 1 . Time 36 | . 36 . Parts Recycled . | . . . Recycled Matter . | . . . Retrieved Matter . | . . . Retrieved Components . | . . . Parts Scanalyzed . | . . . Part Schematics Acquired . | . . . Parts Damaged . | . . . Bothacking | -11 -10 -9 ------------ Run | Scr Mat Mat Used RIF Installer . | . . . Robots Hacked 1 | . 1 . Non-combat 1 | . 1 . Combat . | . . . Robot Hacks Applied 1 | . 1 . parse_system 1 | . 1 . Relay Couplers Released . | . . . Robots Rewired . | . . . Allies Hacked . | . . . Hacks Repelled . | . . . Allies | -11 -10 -9 -------- Run | Scr Mat Mat Total Allies . | . . . Largest Group . | . . . Highest-Rated Group . | . . . Highest-Rated Ally . | . . . Total Orders . | . . . Ally Attacks . | . . . Total Damage . | . . . Kills . | . . . Allies Corrupted . | . . . Allies Melted . | . . . Intel | -11 -10 -9 ------- Run | Scr Mat Mat Robot Analysis Total . | . . . Derelict Logs Recovered . | . . . Drone Launches . | . . . Drone Recoveries . | . . . Exploration | -11 -10 -9 ------------- Run | Scr Mat Mat Turns Passed 855 | 70 481 304 Spaces Moved 746 | 56 452 238 Core 71 | 10 . 61 Treads . | . . . Legs 12 | 12 . . Wheels 521 | 34 452 35 Hover 142 | . . 142 Flight . | . . . Fastest Speed 50 | 50 90 50 Average Speed 89 | 89 91 85 Slowest Speed 200 | 120 100 200 Overloaded Moves . | . . . Propulsion Burnouts . | . . . Robots Hopped . | . . . Cave-ins Triggered . | . . . Exploration Rate (%) 30 | 4 59 28 Regions Visited 2 Branch Regions . Pre-discovered Areas . | . . . Known Exits Taken 1 | . 1 . Unknown Exits Taken 1 | 1 . . Scrap Searched . | . . . Spaces Dug . | . . . Terrain Destroyed 10 | . 7 3 Melee . | . . . Projectile . | . . . AOE 10 | . 7 3 Actions | -11 -10 -9 --------- Run | Scr Mat Mat Total 876 | 74 498 304 Wait 3 | . . 3 Move 744 | 55 451 238 Hop . | . . . Pick Up 35 | 10 13 12 Fast Attach 2 | . . 2 Attach 19 | 6 2 11 Detach 1 | . . 1 Swap 17 | 3 7 7 Drop 17 | . 11 6 Fire 37 | . 13 24 Melee 1 | . 1 . Ram . | . . . Kick . | . . . Crush . | . . . Escape Stasis . | . . . Rewire . | . . . Trap . | . . . Miscellaneous . | . . . Route ------- -11/Scrapyard -10/Materials (discovered 2 exits: *Mat / *Min) -9/Materials History --------- Turn | Location | Event 4 | -11/Scrapyard | Discovered new exit (range 16) 71 | -11/Scrapyard | Entered Materials 274 | -10/Materials | Discovered new exit (range 16) 314 | -10/Materials | Identified exit to Materials 342 | -10/Materials | Build established: Mutant 449 | -10/Materials | Repaired Datajack 469 | -10/Materials | Discovered new exit (range 8) 503 | -10/Materials | Identified exit to Mines 552 | -10/Materials | Entered another Materials area 552 | -9/Materials | Evolved 2 slots: Utility x2 721 | -9/Materials | Core integrity fell below 50% 741 | -9/Materials | Destroyed 7 combat bots 761 | -9/Materials | Core integrity fell below 20% 826 | -9/Materials | Lost 13 parts (1p3n4u5w) 856 | -9/Materials | Destroyed by Y-45 Defender with Beam Rifle Last Messages --------------- 00731_ Acquired 27 matter. 00735_ K-01 Serf collects debris. 00740_ Signal Interpreter destroyed. 00741_ K-01 Serf collects debris. 00757_ Connecting with Terminal... 00760_ Airjet destroyed. 00767_ Y-45 Defender destroyed. 00767_ K-01 Serf collects debris. 00769_ Acquired 33 matter. 00771_ Acquired Beam Rifle. 00773_ K-01 Serf destroyed. 00774_ Acquired Imp. Ion Engine. 00782_ Lgt. Armor Plating destroyed. 00795_ Lgt. Assault Rifle destroyed. 00820_ Triggered Alarm Trap. 00820_ An alarm sounds. 00820_ ALERT: Alarm triggered, dispatching investigation squad. 00823_ U-05 Engineer lays Concrete. 00843_ K-01 Serf collects debris. [Achievement: First Step to Greatness] Map ----- +----------------------------------------------------+ | | | | | | | | | | | | | | | | | | | | | | | | | | | | | | | ???????????????????????????????????????????? | | ???????????????????????????????????????????? | | ???????????????????????????????????????????? | | ???????????????????????????????????????????? | | ????????????????????????????????? ?????????? | | ????????????????????????????????? ?????????? | | ????????????????????????????????? ?????????? | | ??????????????????######????????? ?????????? | | ???????????+ ##### #????????? ""???????? | | ???????????# Y #????????? "Y???????? | | ???????????+ @ +????????? ""???????? | | ???????????#####t## #????????? ???????? | | ??????????????????##+#######?????#/#???????? | | ??????????????????# #?????# #???????? | | ??????????????????# #?????# #???????? | | ??????????????????# #?????# #???????? | | ??????????????????# #?????# ########? | | ??????????????????# #?????# # """ #? | | ??????????????????# ####### # """ #? | | ??????????????????# / # """ #? | | ??????????????????# ####### # ??? | | ??????????????????# #?????# # ???? | | ??????????????????#############??# # ????? | | ???????????????????????# # #+####??? | | ???????????????????????# + #??? | | ???????????????????????#* # #### #??? | | ???????????????????????# / # #??# #?## | | ???????????????????????#########?# #??# ## | | ???????????????????????????????###/##?# ## | | ???????????????????????????????# # ## " | | ???????????????????????????????# # ## " | | ???????????????????????????????# / #? " | | ???????????????????????????????# # #??? | | ???????????????????????????????# # #### | | ???????????????????????????????# ?# | +----------------------------------------------------+ Best States ------------- Heat Dissipation 42 Energy Generation 12 Energy Capacity 265 Matter Stores 396 Matter Capacity 500 Sight Range 16 Robot Scan Range 16 Terrain Scan Density 10 Armor Coverage 375 Resistance: KI 20 Resistance: TH 20 Resistance: EX 20 Resistance: EM 20 Resistance: I 20 Resistance: S 20 Resistance: P 20 Evasion (%) 53 Targeting Accuracy 5 Item Schematics ----------------- None Robot Schematics ------------------ None Fabricated ------------ Nothing Alien Tech Used ----------------- None Achievements -------------- First Step to Greatness Part-time Mechanic Challenges ------------ None Game ------ Seed IntegratedSniperMace Manual? 0 Play Time 00:37:13 Cumulative 7.1 hours Start 2019.12.09 @ 05:50:46 End 2019.12.09 @ 06:26:52 Sessions 1 Manual Loads 0 Difficulty Adventurer Special Mode None Game No. 10 Rogue 9 Adventurer 1 Explorer 0 Win Type - Total 0 Types 0/0/0/0/0/0/0 Lore% 6 Gallery% 18 Achievement% 1 Wizard Run 0 Options --------- ASCII 0 Keyboard 0 Movement Mouse Keybinds 0 Fullscreen 1 Font 18/Terminus Map View 76x50 Tactical HUD 1 Map Filters NONE Filters NONE Steam 1 RUN: 1f34a091-545f-4de6-95f6-f62a8b8328da